fUSD/lending_fUSD_20250410
["ID","MTS","AMOUNT","RATE_DAILY","PERIOD"]
[357652363,1744273847315,-24095.0,0.00042,5]
[357652366,1744274754137,-250.0,0.00019,2]
[357652367,1744274754159,-300.0,0.00021,2]
[357652368,1744274754181,-57.7329042,0.00023,2]
[357652369,1744274819183,246.99001402,0.00023,120]
[357652370,1744274831507,-292.2670958,0.00023,2]
[357652371,1744274831528,-172.09,0.00026849,2]
[357652372,1744274831549,-172.09,0.00032646,2]
[357652373,1744274831569,-150.0,0.00034548,10]
[357652374,1744274831589,-303.02,0.00034609,5]
[357652375,1744274831610,-442.5777424,0.00035,2]
[357652376,1744274831632,-170.6389717,0.00035377,2]
[357652377,1744274831652,-300.43,0.00035477,5]
[357652378,1744274831673,-1437.0,0.00035551,2]
[357652379,1744274831692,-301.4,0.00036269,5]
[357652380,1744274831712,-1161.74,0.00037407,2]
[357652381,1744274831733,-302.15,0.00037881,5]
[357652382,1744274831753,-1428.27994994,0.00038141,2]
[357652383,1744274836131,-238.62235006,0.00038141,2]
[357652384,1744274836152,-171.8101637,0.00038356,2]
[357652385,1744274836173,-172.09,0.00038443,2]
[357652386,1744274836194,-179.76,0.00038486,120]
[357652387,1744274836214,-1667.473634,0.00038516,2]
[357652388,1744274842117,-181.246366,0.00038516,2]
[357652389,1744274842139,-155.39,0.00038626,2]
[357652390,1744274842159,-150.99,0.00038626,2]
[357652391,1744274842179,-200.0,0.00038663,2]
[357652392,1744274842200,-301.18,0.00038673,5]
[357652393,1744274842220,-200.0,0.00038829,2]
[357652394,1744274842242,-500.0,0.00039068,2]
[357652395,1744274842264,-1000.0,0.00039109,2]
[357652396,1744274842284,-575.87,0.00039109,2]
[357652397,1744274842305,-250.0,0.00039125,2]
[357652398,1744274842326,-167.651938,0.0003936,60]
[357652399,1744274842348,-1161.74,0.00039671,2]
[357652400,1744274842369,-588.60602214,0.0004,6]
[357652401,1744274842390,-200.0,0.0004,10]
[357652402,1744274842410,-3406.33499443,0.0004,4]
[357652411,1744275032392,-309.77145267,0.0004,4]
[357652412,1744275032402,-185.24,0.00040072,2]
[357652413,1744275032664,-303.43,0.00040154,5]
[357652414,1744275032673,-200.0,0.00040185,7]
[357652415,1744275032682,-274.0,0.00040232,2]
[357652416,1744275032691,-1125.67638,0.00040739,4]
[357652417,1744275032699,-93.43186663,0.00040777,59]
[357652419,1744275032721,-83.80500591,0.00040777,59]
[357652423,1744275032751,-32.91712746,0.00040777,59]
[357652424,1744275032760,-166.66,0.00040777,2]
[357652426,1744275032769,-315.5523,0.000408,2]
[357652428,1744275032779,-500.0,0.00040873,5]
[357652430,1744275032788,-550.0,0.00040888,5]
[357652432,1744275032797,-13065.14483252,0.00040889,15]
[357652433,1744275032806,-436.6226,0.00040889,2]
[357652435,1744275032815,-598.37206358,0.0004089,53]
[357652437,1744275032824,-2500.0,0.0004089,2]
[357652439,1744275032834,-500.0,0.00040899,7]
[357652441,1744275032843,-500.0,0.00040899,7]
[357652443,1744275032852,-500.0,0.00040899,7]
[357652445,1744275032861,-500.0,0.00040899,7]
[357652447,1744275032870,-500.0,0.00040899,7]
[357652448,1744275032880,-500.0,0.00040899,7]
[357652450,1744275032889,-500.0,0.00040899,7]
[357652452,1744275032898,-500.0,0.00040899,7]
[357652454,1744275032908,-621.01510171,0.00040899,7]
[357652456,1744275032916,-500.0,0.00040899,7]
[357652458,1744275032926,-500.0,0.00040899,7]
[357652460,1744275032935,-500.0,0.00040899,7]
[357652462,1744275032944,-500.0,0.00040899,7]
[357652464,1744275032954,-500.0,0.00040899,7]
[357652465,1744275032963,-500.0,0.00040899,7]
[357652467,1744275032972,-500.0,0.00040899,7]
[357652469,1744275032981,-500.0,0.00040899,7]
[357652471,1744275032991,-500.0,0.00040899,7]
[357652473,1744275033000,-500.0,0.00040899,7]
[357652475,1744275033009,-1101.60316477,0.000409,2]
[357652484,1744275038445,-590.42707663,0.000409,2]
[357652485,1744275038457,-16309.77999999,0.000409,2]
[357652486,1744275038551,-14501.78587195,0.000409,2]
[357652487,1744275038563,-27896.6864652,0.000409,2]
[357652491,1744275039003,-269.97290451,0.000409,2]
[357652494,1744275039026,-407.57,0.000409,2]
[357652497,1744275039118,-1327.67878759,0.000409,2]
[357652498,1744275039327,-1004.33436873,0.000409,2]
[357652499,1744275039339,-3162.03984205,0.000409,2]
[357652500,1744275039370,-540.00000005,0.000409,2]
[357652510,1744275040590,-14009.01761579,0.000409,2]
[357652511,1744275040621,-9096.64373114,0.000409,2]
[357652512,1744275040632,-8947.21879473,0.000409,2]
[357652513,1744275040643,-8943.78386462,0.000409,2]
[357652514,1744275040654,-9077.54866152,0.000409,2]
[357652515,1744275040666,-7877.12985073,0.000409,2]
[357652516,1744275040675,-157.6101,0.000409,2]
[357652517,1744275040684,-500.0,0.00040973,5]
[357652518,1744275040694,-409.10028416,0.00040973,5]
[357652519,1744275040706,-90.89971584,0.00040973,5]
[357652520,1744275040715,-500.0,0.00040973,5]
[357652521,1744275040725,-383.6555457,0.00040973,5]
[357652522,1744275040847,-120.8995746,0.00040973,5]
[357652523,1744275040856,-500.0,0.00040973,5]
[357652524,1744275040866,-500.0,0.00040973,5]
[357652525,1744275040876,-505.39972622,0.00040973,2]
[357652526,1744275040885,-296.77189323,0.00040973,2]
[357652527,1744275040897,-203.22810677,0.00040973,2]
[357652528,1744275040907,-500.0,0.00040973,5]
[357652529,1744275040916,-511.66690775,0.00040989,31]
[357652530,1744275040926,-500.0,0.00040989,31]
[357652531,1744275040936,-511.66690775,0.00040989,31]
[357652532,1744275040946,-511.66690775,0.00040989,31]
[357652533,1744275040957,-500.0,0.00040989,31]
[357652534,1744275040967,-511.66690775,0.00040989,31]
[357652535,1744275040977,-511.66690775,0.00040989,31]
[357652536,1744275040986,-25.79735448,0.00040989,31]
[357652537,1744275040998,-485.86955327,0.00040989,31]
[357652538,1744275041009,-211.43856806,0.00040989,31]
[357652539,1744275041018,-100.34375637,0.00040989,31]
[357652540,1744275041030,-411.32315138,0.00040989,31]
[357652541,1744275041044,-511.66690775,0.00040989,31]
[357652543,1744275041054,-511.66690775,0.00040989,31]
[357652545,1744275041071,-511.66690775,0.00040989,31]
[357652547,1744275041081,-511.66690775,0.00040989,31]
[357652549,1744275041091,-511.66690775,0.00040989,31]
[357652551,1744275041101,-511.66690775,0.00040989,31]
[357652553,1744275041110,-511.66690775,0.00040989,31]
[357652555,1744275041120,-511.66690775,0.00040989,31]
[357652557,1744275041131,-511.66690775,0.00040989,31]
[357652559,1744275041140,-354.67467887,0.00040989,31]
[357652562,1744275041162,-156.99222888,0.00040989,31]
[357652564,1744275041172,-511.66690775,0.00040989,31]
[357652566,1744275041181,-511.66690775,0.00040989,31]
[357652568,1744275041190,-511.66690775,0.00040989,31]
[357652570,1744275041199,-151.80271357,0.00040989,31]
[357652638,1744275041865,-385.44753957,0.00040989,31]
[357652640,1744275041877,-537.25025314,0.00040989,31]
[357652642,1744275041890,-537.25025314,0.00040989,31]
[357652645,1744275041903,-537.25025314,0.00040989,31]
[357652647,1744275041916,-537.25025314,0.00040989,31]
[357652649,1744275041928,-537.25025314,0.00040989,31]
[357652652,1744275041942,-537.25025314,0.00040989,31]
[357652654,1744275041955,-537.25025314,0.00040989,31]
[357652656,1744275041969,-626.97111373,0.0004099,4]
[357652659,1744275041988,-2506.65489234,0.0004099,4]
[357652662,1744275042008,-1526.99050172,0.0004099,4]
[357652665,1744275042028,-1024.429509,0.0004099,4]
[357652668,1744275042053,-506.2647115,0.0004099,4]
[357652671,1744275042073,-829.27284344,0.0004099,4]
[357652834,1744275044852,-393.621902,0.00038708,30]
[357652835,1744275044863,-471.928098,0.0004099,4]
[357652847,1744275046712,-1340.67955941,0.0004099,4]
[357652848,1744275046743,-1565.26867851,0.0004099,4]
[357652849,1744275046782,-2055.74478843,0.0004099,4]
[357652851,1744275047667,460.90078331,0.00037,2]
[357652864,1744275248823,11990.0,0.00035,120]
[357652878,1744275595850,1778.0,0.00035,30]
[357652901,1744275950144,-205.63135507,0.00026849,2]
[357652902,1744275957095,-26.31864493,0.00026849,2]
[357652903,1744275957117,-231.95,0.00032646,2]
[357652904,1744275957138,-1312.75403608,0.000342,2]
[357652909,1744276043064,-887.24596392,0.000342,2]
[357652910,1744276043084,-236.15794054,0.00034748,5]
[357652912,1744276090645,1000.0,0.00035,30]
[357652913,1744276103572,815.0,0.00035,30]
[357652914,1744276148438,-596.5946,0.000321,5]
[357652915,1744276152097,-174.4054,0.000321,5]
[357652916,1744276154085,-64.33205946,0.00034748,5]
[357652917,1744276154107,-303.15,0.00034748,5]
[357652918,1744276154126,-500.0,0.00035,2]
[357652919,1744276154148,-301.66,0.00035604,5]
[357652920,1744276154168,-303.03,0.00036462,5]
[357652921,1744276154189,-303.19,0.00037317,5]
[357652922,1744276166212,303.85,0.00037317,5]
[357652923,1744276184099,304.89,0.00037317,5]
[357652924,1744276185936,424.92755267,0.00035,30]
[357652925,1744276185956,1033.1258,0.00035,30]
[357652926,1744276201322,300.41,0.00034,5]
[357652941,1744276231564,-365.0,0.00034999,2]
[357652942,1744276231573,-301.94,0.00035,5]
[357652943,1744276231583,-500.0,0.00035073,5]
[357652944,1744276231592,-1000.0,0.00037046,30]
[357652945,1744276231602,-1000.0,0.00037168,30]
[357652946,1744276231611,-1000.0,0.00037244,30]
[357652947,1744276231620,-300.0,0.00038,2]
[357652948,1744276231629,-304.81,0.00038181,5]
[357652949,1744276231638,-300.0,0.0003838,2]
[357652950,1744276231648,-1082.13,0.00038402,2]
[357652951,1744276231657,-231.95,0.00038443,2]
[357652952,1744276231666,-300.0,0.0003876,2]
[357652953,1744276231675,-302.81,0.00038999,5]
[357652954,1744276231684,-300.0,0.0003914,2]
[357652955,1744276231693,-200.0,0.00039217,7]
[357652956,1744276231702,-185.24,0.00039398,2]
[357652957,1744276231711,-1000.0,0.00039412,2]
[357652958,1744276231721,-1000.0,0.000395,30]
[357652960,1744276231730,-300.0,0.0003952,2]
[357652962,1744276231739,-1000.0,0.0003975,30]
[357652964,1744276231748,-920.49,0.0003976,30]
[357652966,1744276231758,-1000.0,0.0003985,30]
[357652968,1744276231767,-300.0,0.000399,4]
[357652970,1744276231777,-1000.0,0.0003995,30]
[357652972,1744276231786,-501.28610908,0.00039973,5]
[357652974,1744276231795,-503.45015987,0.00039973,5]
[357652976,1744276231805,-500.0,0.00039973,5]
[357652978,1744276231814,-500.0,0.00039973,5]
[357652980,1744276231824,-500.0,0.00039999,7]
[357652981,1744276231833,-457.89056686,0.00039999,7]
[357652983,1744276231842,-250.0,0.00039999,4]
[357652985,1744276231851,-47858.44410217,0.0004,2]
[357652989,1744276231883,-1187.14791704,0.0004,2]
[357653056,1744276236280,92197.67,0.00035,30]
[357653062,1744276237586,-293.7168,0.00035015,5]
[357653063,1744276237640,-7.9632,0.00035015,5]
[357653064,1744276237650,-1872.5008,0.0004,2]
[357653065,1744276237746,-5368.83721657,0.0004,2]
[357653066,1744276237755,-1000.0,0.0004,7]
[357653067,1744276237764,-500.0,0.0004,120]
[357653068,1744276237773,-1000.0,0.0004,30]
[357653069,1744276237782,-2300.00000001,0.0004,2]
[357653070,1744276237792,-1000.0,0.0004015,30]
[357653071,1744276237801,-152.0,0.00040181,3]
[357653072,1744276237815,-1000.0,0.0004025,30]
[357653073,1744276237824,-350.663,0.00040319,57]
[357653074,1744276237840,-23900.0,0.0004032,2]
[357653075,1744276237849,-250.0,0.0004032,2]
[357653076,1744276237858,-200.0,0.0004032,2]
[357653077,1744276237868,-155.39,0.00040393,2]
[357653078,1744276237879,-287.93,0.00040473,2]
[357653079,1744276237888,-1000.0,0.000405,30]
[357653080,1744276237897,-205.12963309,0.00040508,2]
[357653081,1744276237906,-164.57072,0.0004056,68]
[357653082,1744276237916,-1082.13,0.00040666,2]
[357653083,1744276237925,-1287.0623256,0.00040739,4]
[357653084,1744276237934,-223.0311,0.000408,2]
[357653085,1744276237943,-11758.63034934,0.000408,15]
[357653086,1744276237952,-334.2495785,0.00040873,5]
[357653088,1744276237961,-180.50681465,0.00040878,28]
[357653090,1744276237970,-1828.99479914,0.00040878,15]
[357653091,1744276237979,-598.37206358,0.00040879,53]
[357653093,1744276237988,-2378.0896,0.00040889,2]
[357653094,1744276237997,-25250.5560932,0.00040889,30]
[357653095,1744276238007,-152.0,0.00040895,4]
[357653096,1744276238016,-1000.0,0.00040899,2]
[357653097,1744276238026,-31368.4739,0.000409,2]
[357653098,1744276238036,-500.0,0.000409,2]
[357653099,1744276238046,-500.0,0.000409,5]
[357653100,1744276238056,-500.0,0.000409,14]
[357653101,1744276238066,-507.642882,0.00040973,5]
[357653102,1744276238075,-295.53496109,0.00040973,5]
[357653103,1744276238084,-500.0,0.00040977,31]
[357653104,1744276238093,-500.0,0.00040977,31]
[357653105,1744276238103,-500.0,0.00040977,31]
[357653106,1744276238112,-500.0,0.00040977,31]
[357653108,1744276238121,-348.00699764,0.00040977,31]
[357653110,1744276238131,-500.0,0.00040977,31]
[357653112,1744276238141,-500.0,0.00040977,31]
[357653114,1744276238151,-500.0,0.00040977,31]
[357653116,1744276238160,-500.0,0.00040977,31]
[357653118,1744276238168,-500.0,0.00040977,31]
[357653119,1744276238178,-500.0,0.00040977,31]
[357653121,1744276238187,-500.0,0.00040977,31]
[357653123,1744276238195,-500.0,0.00040977,31]
[357653125,1744276238205,-500.0,0.00040977,31]
[357653127,1744276238215,-500.0,0.00040977,31]
[357653129,1744276238224,-500.0,0.00040977,31]
[357653131,1744276238234,-500.0,0.00040977,31]
[357653133,1744276238243,-500.0,0.00040977,31]
[357653135,1744276238252,-500.0,0.00040977,31]
[357653137,1744276238261,-500.0,0.00040977,31]
[357653139,1744276238270,-500.0,0.00040977,31]
[357653141,1744276238280,-349.85796637,0.00040977,31]
[357653143,1744276238289,-500.0,0.00040977,31]
[357653145,1744276238299,-500.0,0.00040977,31]
[357653147,1744276238307,-500.0,0.00040977,31]
[357653149,1744276238316,-500.0,0.00040977,31]
[357653151,1744276238325,-11039.97660173,0.00040978,2]
[357653153,1744276238337,-464.66400001,0.00040978,2]
[357653155,1744276238348,-15849.50400001,0.00040978,2]
[357653210,1744276239685,-479.65401242,0.00040978,2]
[357653211,1744276239845,-739.270795,0.00040978,2]
[357653295,1744276245748,-6000.0,0.00040978,2]
[357653296,1744276245803,-3002.18100228,0.00040978,2]
[357653351,1744277108980,79625.7801661,0.0002,2]
[357653352,1744277155135,-160.42,0.00026849,2]
[357653353,1744277155156,-151.0,0.00037649,2]
[357653354,1744277155178,-591.27490144,0.00038,2]
[357653355,1744277157252,8034.15662058,6.94e-05,2]
[357653356,1744277225107,-603.09891713,0.00024,5]
[357653357,1744277228537,278.5955,0.000153,2]
[357653358,1744277245113,-1493.90914045,0.00024,5]
[357653359,1744277280965,1513.41662024,0.00032748,30]
[357653360,1744277283441,43807.75622912,0.00015,2]
[357653370,1744277345091,-245.0,0.00024,5]
[357653371,1744277346172,-1747.17998497,0.00024,5]
[357653372,1744277349132,-910.81484933,0.00024,5]
[357653373,1744277349153,-446.17437824,0.00029,2]
[357653374,1744277352085,-7713.95996776,0.00029,2]
[357653388,1744277431891,-382.63509856,0.00038,2]
[357653389,1744277431901,-1339.40291732,0.00038372,2]
[357653390,1744277431910,-304.96,0.00038405,5]
[357653391,1744277431919,-304.84,0.00038405,5]
[357653392,1744277431928,-302.39,0.00038405,5]
[357653393,1744277431938,-305.77,0.00038405,5]
[357653395,1744277431947,-304.29,0.00038405,5]
[357653397,1744277431956,-300.8,0.00038405,5]
[357653399,1744277431966,-301.7,0.00038405,5]
[357653400,1744277431980,-304.07,0.00038405,5]
[357653401,1744277431994,-303.79,0.00038405,5]
[357653403,1744277432003,-303.0,0.00038405,5]
[357653405,1744277432014,-303.25,0.00038405,5]
[357653406,1744277432023,-303.35,0.00038405,5]
[357653408,1744277432033,-301.06,0.00038405,5]
[357653410,1744277432042,-300.4,0.00038405,5]
[357653412,1744277432061,-303.42,0.00038405,5]
[357653414,1744277432074,-304.1,0.00038405,5]
[357653416,1744277432084,-301.96,0.00038406,5]
[357653418,1744277432093,-302.03,0.00038406,5]
[357653420,1744277432102,-304.38,0.00038406,5]
[357653422,1744277432112,-304.58,0.00038406,5]
[357653424,1744277432121,-301.16,0.00038406,5]
[357653426,1744277432130,-300.68,0.00038406,5]
[357653428,1744277432140,-303.22,0.00038406,5]
[357653430,1744277432149,-301.14,0.00038406,5]
[357653432,1744277432158,-303.23,0.00038599,5]
[357653434,1744277432168,-311.23664302,0.000389,2]
[357653436,1744277432178,-305.96,0.00039558,5]
[357653438,1744277432188,-859.12,0.0003969,30]
[357653440,1744277432198,-200.0,0.00039704,7]
[357653442,1744277432208,-179.76,0.00039704,120]
[357653444,1744277432217,-185.25,0.00039704,2]
[357653446,1744277432227,-10582.76731437,0.00039746,2]
[357653448,1744277432236,-500.0,0.00039773,2]
[357653450,1744277432245,-250.0,0.00039798,2]
[357653452,1744277432255,-593.60489835,0.00039799,31]
[357653454,1744277432264,-500.0,0.00039799,31]
[357653456,1744277432274,-500.0,0.00039799,31]
[357653458,1744277432283,-500.0,0.00039799,31]
[357653460,1744277432292,-500.0,0.00039799,31]
[357653461,1744277432302,-500.0,0.00039799,31]
[357653463,1744277432311,-500.0,0.00039799,31]
[357653465,1744277432320,-500.0,0.00039799,31]
[357653467,1744277432329,-500.0,0.00039799,31]
[357653469,1744277432339,-644.6638526,0.00039799,31]
[357653471,1744277432348,-500.0,0.00039799,31]
[357653474,1744277432362,-465.30245799,0.00039799,31]
[357653476,1744277432371,-500.0,0.00039799,31]
[357653478,1744277432381,-500.0,0.00039799,31]
[357653479,1744277432390,-500.0,0.00039799,31]
[357653481,1744277432400,-450.0,0.00039799,31]
[357653483,1744277432410,-170497.17939786,0.000398,2]
[357653485,1744277432419,-1342.54,0.00039846,2]
[357653487,1744277432429,-23900.0,0.00039946,2]
[357653489,1744277432439,-287.93,0.00039987,2]
[357653491,1744277432449,-155.39,0.00040065,2]
[357653493,1744277432459,-471.4,0.000401,2]
[357653495,1744277432468,-300.98,0.00040178,2]
[357653497,1744277432478,-10582.76731433,0.00040178,15]
[357653499,1744277432488,-973.91,0.00040264,2]
[357653501,1744277432500,-10582.76731433,0.0004061,15]
[357653503,1744277432510,-5106.4,0.00040729,2]
[357653505,1744277432520,-1246.7158392,0.00040739,4]
[357653507,1744277432529,-180.50681465,0.00040783,28]
[357653509,1744277432539,-400.0,0.000408,14]
[357653511,1744277432548,-502.64363285,0.00040873,5]
[357653513,1744277432558,-499.999999,0.00040873,5]
[357653515,1744277432567,-150.40667355,0.00040873,5]
[357653517,1744277432577,-500.0,0.00040873,5]
[357653519,1744277432587,-1000.0,0.00040877,3]
[357653521,1744277432596,-364.89,0.00040878,59]
[357653523,1744277432605,-300.95,0.00040878,5]
[357653525,1744277432615,-303.03,0.00040878,5]
[357653527,1744277432624,-305.31,0.00040878,5]
[357653529,1744277432634,-301.28,0.00040878,5]
[357653531,1744277432643,-303.73,0.00040878,5]
[357653533,1744277432653,-305.69,0.00040878,5]
[357653535,1744277432663,-303.6,0.00040878,5]
[357653537,1744277432672,-300.83,0.00040878,5]
[357653538,1744277432683,-301.73,0.00040878,5]
[357653540,1744277432692,-500.0,0.00040878,2]
[357653542,1744277432702,-36083.0014,0.00040879,2]
[357653544,1744277432713,-1000.0,0.00040879,2]
[357653546,1744277432722,-301.85,0.00040879,5]
[357653548,1744277432731,-300.58,0.00040883,5]
[357653550,1744277432743,-300.03,0.00040883,5]
[357653552,1744277432752,-303.44,0.00040883,5]
[357653554,1744277432762,-303.57,0.00040883,5]
[357653556,1744277432772,-305.54,0.00040886,5]
[357653558,1744277432785,-166.29242759,0.000409,120]
[357653560,1744277432795,-1646.09531928,0.000409,15]
[357653562,1744277432804,-900.0,0.000409,14]
[357653564,1744277432813,-302.46,0.00040903,5]
[357653566,1744277432824,-303.48,0.00040908,5]
[357653568,1744277432834,-302.69,0.00040908,5]
[357653570,1744277432844,-302.47,0.00040915,5]
[357653572,1744277432853,-303.54,0.00040925,5]
[357653574,1744277432863,-303.03,0.00040938,5]
[357653576,1744277432873,-501.46526981,0.00040973,5]
[357653578,1744277432883,-274.0,0.00040973,2]
[357653579,1744277432892,-151.0,0.00040975,2]
[357653581,1744277432902,-621.78829552,0.00040975,2]
[357653583,1744277432911,-200.0,0.00040975,2]
[357653585,1744277432920,-437.189405,0.00040977,31]
[357653587,1744277432929,-5106.4,0.00040979,2]
[357653589,1744277432938,-151.62,0.0004098,2]
[357653591,1744277432947,-995.88910005,0.0004098,5]
[357653593,1744277432957,-95271.5503579,0.0004098,4]
[357653595,1744277432966,-302.98,0.00040983,5]
[357653597,1744277432976,-176889.52403107,0.00040989,2]
[357653599,1744277432985,-1675.09024108,0.00040989,2]
[357653601,1744277432994,-87332.2544948,0.0004099,4]
[357653603,1744277433004,-71534.7813241,0.0004099,4]
[357653605,1744277433013,-55575.0710421,0.0004099,4]
[357653607,1744277433023,-187778.800976,0.0004099,4]
[357653609,1744277433034,-151.62,0.0004099,2]
[357653611,1744277433045,-173.70670832,0.0004099,7]
[357653613,1744277433055,-787.25,0.00040996,2]
[357653615,1744277433065,-488.97,0.00040996,2]
[357653617,1744277433075,-446.78,0.00040996,2]
[357653619,1744277433085,-787.25,0.00040996,2]
[357653621,1744277433095,-446.78,0.00040996,2]
[357653622,1744277433105,-534.44,0.00040996,2]
[357653623,1744277433115,-446.78,0.00040996,2]
[357653624,1744277433125,-151.041018,0.00040998,120]
[357653625,1744277433136,-1000.0,0.00041,120]
[357653626,1744277433146,-336697.42401804,0.00041,60]
[357653627,1744277433156,-303.95,0.00041,5]
[357653628,1744277433166,-305.81,0.00041,5]
[357653629,1744277433176,-301.54,0.00041,5]
[357653630,1744277433186,-305.14,0.00041,5]
[357653631,1744277433196,-303.38,0.00041,5]
[357653632,1744277433205,-32602.79389742,0.00041,30]
[357653633,1744277433216,-303.55,0.00041,5]
[357653634,1744277433226,-500.0,0.00041,7]
[357653635,1744277433236,-222.0,0.00041,14]
[357653651,1744277433247,-11213.42902811,0.00041,30]
[357653653,1744277433432,-203.958174,0.00041,14]
[357653655,1744277433442,-152.500275,0.00041,14]
[357653657,1744277433452,-151.0,0.00041,14]
[357653659,1744277433462,-151.0,0.00041,14]
[357653661,1744277433472,-151.0,0.00041,14]
[357653663,1744277433482,-265.627102,0.00041,14]
[357653665,1744277433492,-151.0,0.00041,14]
[357653667,1744277433502,-151.0,0.00041,14]
[357653669,1744277433513,-151.0,0.00041,14]
[357653671,1744277433523,-151.0,0.00041,14]
[357653673,1744277433532,-1651.4695239,0.0004103,2]
[357653675,1744277433542,-5165.4816863,0.0004103,2]
[357653676,1744277433552,-8941.84766551,0.00041033,4]
[357653678,1744277433562,-10582.76731433,0.00041043,15]
[357653680,1744277433572,-8941.84766551,0.00041048,4]
[357653682,1744277433582,-14441.3475791,0.00041058,2]
[357653684,1744277433592,-8941.84766551,0.00041086,4]
[357653686,1744277433603,-150.0,0.00041096,2]
[357653688,1744277433612,-500.0,0.00041096,31]
[357653690,1744277433622,-278.94732446,0.00041096,31]
[357653692,1744277433631,-500.0,0.00041096,31]
[357653694,1744277433641,-500.0,0.00041096,31]
[357653696,1744277433651,-500.0,0.00041096,31]
[357653698,1744277433660,-500.0,0.00041096,31]
[357653700,1744277433672,-500.0,0.00041096,31]
[357653702,1744277433682,-500.0,0.00041096,31]
[357653704,1744277433692,-500.0,0.00041096,31]
[357653706,1744277433703,-500.0,0.00041096,31]
[357653708,1744277433713,-500.0,0.00041096,31]
[357653710,1744277433723,-500.0,0.00041096,31]
[357653712,1744277433733,-500.0,0.00041096,31]
[357653714,1744277433743,-500.0,0.00041096,31]
[357653716,1744277433752,-500.0,0.00041096,31]
[357653718,1744277433762,-500.0,0.00041096,31]
[357653720,1744277433772,-500.0,0.00041096,31]
[357653721,1744277433785,-500.0,0.00041096,31]
[357653723,1744277433795,-500.0,0.00041096,31]
[357653726,1744277433806,-500.0,0.00041096,31]
[357653727,1744277433816,-500.0,0.00041096,31]
[357653729,1744277433827,-500.0,0.00041096,31]
[357653731,1744277433837,-500.0,0.00041096,31]
[357653733,1744277433848,-500.0,0.00041096,31]
[357653735,1744277433859,-500.0,0.00041096,31]
[357653737,1744277433870,-500.0,0.00041096,31]
[357653739,1744277433880,-500.0,0.00041096,31]
[357653741,1744277433890,-500.0,0.00041096,31]
[357653743,1744277433900,-500.0,0.00041096,31]
[357653745,1744277433911,-500.0,0.00041096,31]
[357653747,1744277433921,-500.0,0.00041096,31]
[357653749,1744277433931,-500.0,0.00041096,31]
[357653751,1744277433941,-500.0,0.00041096,31]
[357653753,1744277433951,-500.0,0.00041096,31]
[357653755,1744277433960,-500.0,0.00041096,31]
[357653757,1744277433969,-500.0,0.00041096,31]
[357653759,1744277433979,-500.0,0.00041096,31]
[357653760,1744277433988,-500.0,0.00041096,31]
[357653762,1744277433998,-500.0,0.00041096,31]
[357653764,1744277434008,-500.0,0.00041096,31]
[357653766,1744277434018,-500.0,0.00041096,31]
[357653768,1744277434028,-500.0,0.00041096,31]
[357653770,1744277434038,-500.0,0.00041096,31]
[357653772,1744277434048,-500.0,0.00041096,31]
[357653774,1744277434058,-500.0,0.00041096,31]
[357653776,1744277434067,-500.0,0.00041096,31]
[357653778,1744277434076,-500.0,0.00041096,31]
[357653780,1744277434086,-500.0,0.00041096,31]
[357653782,1744277434095,-500.0,0.00041096,31]
[357653784,1744277434105,-550.0,0.00041096,31]